fUSD/lending_fUSD_20240616
["ID","MTS","AMOUNT","RATE_DAILY","PERIOD"]
[329619678,1718513459800,-500.0,0.00021917,2]
[329619679,1718513459811,-500.0,0.00021917,2]
[329619680,1718513459822,-184.92681816,0.00021917,2]
[329619681,1718513459834,-500.0,0.00021917,2]
[329619682,1718513459848,-500.0,0.00021917,2]
[329619683,1718513459906,-505.69996412,0.00021917,2]
[329619684,1718513459919,-974.67,0.00021917,2]
[329619685,1718513459950,-355.46997966,0.00021917,2]
[329619686,1718513460000,-761.44,0.00021917,2]
[329619687,1718513460013,-500.0,0.00021917,2]
[329619688,1718513460025,-500.0,0.00021917,2]
[329619689,1718513460039,-500.0,0.00021917,2]
[329619690,1718513460053,-500.0,0.00021917,2]
[329619691,1718513460081,-500.0,0.00021917,2]
[329619692,1718513460093,-936.69,0.00021917,2]
[329619693,1718513460105,-500.0,0.00021917,2]
[329619694,1718513460132,-500.0,0.00021917,2]
[329619695,1718513460161,-509.2020732,0.00021917,2]
[329619696,1718513460223,-500.0,0.00021917,2]
[329619697,1718513460241,-503.07414469,0.00021917,2]
[329619698,1718513460272,-505.66785069,0.00021917,2]
[329619699,1718513460309,-500.0,0.00021917,2]
[329619700,1718513460343,-509.96422788,0.00021917,2]
[329619701,1718513460358,-500.0,0.00021917,2]
[329619702,1718513460381,-519.26,0.00021917,2]
[329619703,1718513460395,-500.0,0.00021917,2]
[329619704,1718513460436,-500.0,0.00021917,2]
[329619705,1718513460448,-500.0,0.00021917,2]
[329619706,1718513460460,-500.0,0.00021917,2]
[329619707,1718513460473,-500.0,0.00021917,2]
[329619708,1718513460500,-2874.23,0.00021917,2]
[329619709,1718513460512,-500.0,0.00021917,2]
[329619710,1718513460524,-500.0,0.00021917,2]
[329619711,1718513460544,-500.0,0.00021917,2]
[329619712,1718513460559,-521.22865393,0.00021917,2]
[329619713,1718513460581,-500.0,0.00021917,2]
[329619714,1718513460600,-500.0,0.00021917,2]
[329619715,1718513460610,-500.0,0.00021917,2]
[329619716,1718513460643,-500.0,0.00021917,2]
[329619717,1718513460669,-175.51042639,0.00021917,2]
[329619718,1718513460701,-500.0,0.00021917,2]
[329619719,1718513460714,-500.0,0.00021917,2]
[329619720,1718513460729,-500.0,0.00021917,2]
[329619721,1718513460742,-500.0,0.00021917,2]
[329619722,1718513460754,-500.0,0.00021917,2]
[329619723,1718513460788,-500.0,0.00021917,2]
[329619724,1718513460800,-500.0,0.00021917,2]
[329619725,1718513460811,-771.01,0.00021917,2]
[329619726,1718513460822,-848.19,0.00021917,2]
[329619727,1718513460849,-500.0,0.00021917,2]
[329619728,1718513460895,-500.0,0.00021917,2]
[329619729,1718513460907,-500.0,0.00021917,2]
[329619730,1718513460918,-500.0,0.00021917,2]
[329619731,1718513460952,-500.0,0.00021917,2]
[329619732,1718513460964,-1299.51,0.00021917,2]
[329619733,1718513461000,-500.0,0.00021917,2]
[329619734,1718513461016,-500.0,0.00021917,2]
[329619735,1718513461051,-500.0,0.00021917,2]
[329619736,1718513461078,-500.0,0.00021917,2]
[329619737,1718513461101,-500.0,0.00021917,2]
[329619738,1718513461125,-745.79,0.00021917,2]
[329619739,1718513461139,-502.08714383,0.00021917,2]
[329619740,1718513461149,-500.0,0.00021917,2]
[329619741,1718513461160,-500.0,0.00021917,2]
[329619742,1718513461170,-5000.0,0.00021917,2]
[329619743,1718513461180,-500.0,0.00021917,2]
[329619744,1718513461192,-500.0,0.00021917,2]
[329619745,1718513461205,-935.62,0.00021917,2]
[329619746,1718513461217,-765.13,0.00021917,2]
[329619747,1718513461260,-500.0,0.00021917,2]
[329619748,1718513461272,-500.0,0.00021917,2]
[329619749,1718513461287,-500.0,0.00021917,2]
[329619750,1718513461298,-1547.84,0.00021917,2]
[329619751,1718513461310,-500.0,0.00021917,2]
[329619752,1718513461328,-500.0,0.00021917,2]
[329619753,1718513461360,-500.0,0.00021917,2]
[329619754,1718513461385,-500.0,0.00021917,2]
[329619755,1718513461396,-500.0,0.00021917,2]
[329619756,1718513461411,-500.0,0.00021917,2]
[329619757,1718513461422,-841.56,0.00021917,2]
[329619758,1718513461434,-565.34,0.00021917,2]
[329619759,1718513461464,-500.0,0.00021917,2]
[329619760,1718513461496,-500.0,0.00021917,2]
[329619761,1718513461520,-500.0,0.00021917,2]
[329619762,1718513461544,-500.0,0.00021917,2]
[329619763,1718513461554,-500.0,0.00021917,2]
[329619764,1718513461570,-500.0,0.00021917,2]
[329619765,1718513461581,-500.0,0.00021917,2]
[329619766,1718513461597,-500.0,0.00021917,2]
[329619767,1718513461610,-1130.43,0.00021917,2]
[329619768,1718513461632,-500.0,0.00021917,2]
[329619769,1718513461652,-500.0,0.00021917,2]
[329619770,1718513461663,-500.0,0.00021917,2]
[329619771,1718513461676,-500.0,0.00021917,2]
[329619772,1718513461694,-500.0,0.00021917,2]
[329619773,1718513461706,-859.77,0.00021917,2]
[329619774,1718513461727,-500.0,0.00021917,2]
[329619775,1718513461737,-648.12,0.00021917,2]
[329619776,1718513461752,-500.0,0.00021917,2]
[329619777,1718513461775,-500.0,0.00021917,2]
[329619778,1718513461786,-500.0,0.00021917,2]
[329619779,1718513461797,-500.0,0.00021917,2]
[329619780,1718513461817,-518.60882894,0.00021917,2]
[329619781,1718513461830,-500.0,0.00021917,2]
[329619782,1718513461844,-500.0,0.00021917,2]
[329619783,1718513461856,-636.14,0.00021917,2]
[329619784,1718513461869,-500.0,0.00021917,2]
[329619785,1718513461884,-500.0,0.00021917,2]
[329619786,1718513461902,-500.0,0.00021917,2]
[329619787,1718513461922,-926.81,0.00021917,2]
[329619788,1718513461961,-928.27,0.00021917,2]
[329619789,1718513461981,-2979.32,0.00021917,2]
[329619790,1718513462001,-500.0,0.00021917,2]
[329619791,1718513462013,-500.0,0.00021917,2]
[329619792,1718513462025,-861.25,0.00021917,2]
[329619793,1718513462043,-500.0,0.00021917,2]
[329619794,1718513462059,-7737.97,0.00021917,2]
[329619795,1718513462078,-500.0,0.00021917,2]
[329619796,1718513462095,-500.0,0.00021917,2]
[329619797,1718513462109,-500.0,0.00021917,2]
[329619798,1718513462130,-500.0,0.00021917,2]
[329619799,1718513462145,-500.0,0.00021917,2]
[329619800,1718513462161,-894.06,0.00021917,2]
[329619801,1718513462173,-500.0,0.00021917,2]
[329619802,1718513462186,-500.0,0.00021917,2]
[329619803,1718513462208,-500.0,0.00021917,2]
[329619804,1718513462219,-500.0,0.00021917,2]
[329619805,1718513462233,-518.66738215,0.00021917,2]
[329619806,1718513462246,-520.51664674,0.00021917,2]
[329619807,1718513462267,-633.84,0.00021917,2]
[329619808,1718513462296,-500.0,0.00021917,2]
[329619809,1718513462310,-778.59,0.00021917,2]
[329619810,1718513462323,-500.0,0.00021917,2]
[329619811,1718513462334,-515.6713926,0.00021917,2]
[329619812,1718513462368,-681.3,0.00021917,2]
[329619813,1718513462383,-597.73764536,0.00021917,2]
[329619814,1718513462429,-592.32,0.00021917,2]
[329619815,1718513462451,-867.77,0.00021917,2]
[329619816,1718513462489,-8500.48,0.00021917,2]
[329619817,1718513462522,-184.26679788,0.00021917,2]
[329619818,1718513462535,-564.00328653,0.00021917,2]
[329619819,1718513462545,-500.0,0.00021917,2]
[329619820,1718513462564,-500.0,0.00021917,2]
[329619821,1718513462591,-500.0,0.00021917,2]
[329619822,1718513462604,-500.0,0.00021917,2]
[329619823,1718513462616,-500.0,0.00021917,2]
[329619824,1718513462628,-500.0,0.00021917,2]
[329619825,1718513462641,-500.0,0.00021917,2]
[329619826,1718513462653,-1325.97,0.00021917,2]
[329619827,1718513462670,-500.0,0.00021917,2]
[329619828,1718513462686,-969.79,0.00021917,2]
[329619829,1718513462708,-1780.67,0.00021917,2]
[329619830,1718513462720,-500.0,0.00021917,2]
[329619831,1718513462734,-500.0,0.00021917,2]
[329619832,1718513462746,-500.0,0.00021917,2]
[329619833,1718513462758,-500.0,0.00021917,2]
[329619834,1718513462770,-500.0,0.00021917,2]
[329619835,1718513462782,-500.0,0.00021917,2]
[329619836,1718513462792,-500.0,0.00021917,2]
[329619837,1718513462823,-1020.18,0.00021917,2]
[329619838,1718513462849,-500.0,0.00021917,2]
[329619839,1718513462871,-509.02,0.00021917,2]
[329619840,1718513462900,-1045.91,0.00021917,2]
[329619841,1718513462916,-500.0,0.00021917,2]
[329619842,1718513462968,-500.0,0.00021917,2]
[329619843,1718513462979,-500.0,0.00021917,2]
[329619844,1718513462996,-500.0,0.00021917,2]
[329619845,1718513463053,-500.0,0.00021917,2]
[329619846,1718513463067,-500.0,0.00021917,2]
[329619847,1718513463138,-500.0,0.00021917,2]
[329619848,1718513463156,-2549.3,0.00021917,2]
[329619849,1718513463210,-500.0,0.00021917,2]
[329619850,1718513463252,-500.0,0.00021917,2]
[329619851,1718513463273,-500.0,0.00021917,2]
[329619852,1718513463287,-375.40583718,0.00021917,2]
[329619853,1718513463308,-500.0,0.00021917,2]
[329619854,1718513463322,-544.41,0.00021917,2]
[329619855,1718513463343,-500.0,0.00021917,2]
[329619856,1718513463360,-500.0,0.00021917,2]
[329619857,1718513463382,-500.0,0.00021917,2]
[329619858,1718513463448,-500.0,0.00021917,2]
[329619859,1718513463464,-500.0,0.00021917,2]
[329619860,1718513463484,-500.0,0.00021917,2]
[329619861,1718513463496,-500.0,0.00021917,2]
[329619862,1718513463515,-500.0,0.00021917,2]
[329619863,1718513463548,-500.0,0.00021917,2]
[329619864,1718513463561,-573.21396101,0.00021917,2]
[329619865,1718513463573,-500.0,0.00021917,2]
[329619866,1718513463601,-585.5822061,0.00021917,2]
[329619867,1718513463627,-500.0,0.00021917,2]
[329619868,1718513463640,-542.10398593,0.00021917,2]
[329619869,1718513463652,-500.0,0.00021917,2]
[329619870,1718513463665,-500.0,0.00021917,2]
[329619871,1718513463696,-1146.15,0.00021917,2]
[329619872,1718513463742,-983.93,0.00021917,2]
[329619873,1718513463761,-500.0,0.00021917,2]
[329619874,1718513463786,-500.0,0.00021917,2]
[329619875,1718513463828,-500.0,0.00021917,2]
[329619876,1718513463844,-500.0,0.00021917,2]
[329619877,1718513463866,-500.0,0.00021917,2]
[329619878,1718513463894,-500.0,0.00021917,2]
[329619879,1718513463906,-500.0,0.00021917,2]
[329619880,1718513463936,-500.0,0.00021917,2]
[329619881,1718513463949,-500.0,0.00021917,2]
[329619882,1718513463963,-1452.28,0.00021917,2]
[329619883,1718513463976,-500.0,0.00021917,2]
[329619884,1718513464005,-500.0,0.00021917,2]
[329619885,1718513464019,-5003.81,0.00021917,2]
[329619886,1718513464029,-610.8,0.00021917,2]
[329619887,1718513464056,-500.0,0.00021917,2]
[329619888,1718513464067,-489.04013966,0.00021917,2]
[329619889,1718513464078,-500.0,0.00021917,2]
[329619890,1718513464158,-500.0,0.00021917,2]
[329619891,1718513464170,-500.0,0.00021917,2]
[329619892,1718513464182,-500.0,0.00021917,2]
[329619893,1718513464193,-500.0,0.00021917,2]
[329619894,1718513464211,-1374.51,0.00021917,2]
[329619895,1718513464222,-500.0,0.00021917,2]
[329619896,1718513464232,-500.0,0.00021917,2]
[329619897,1718513464276,-500.0,0.00021917,2]
[329619898,1718513464319,-500.0,0.00021917,2]
[329619899,1718513464331,-500.0,0.00021917,2]
[329619900,1718513464343,-500.0,0.00021917,2]
[329619901,1718513464354,-359.82845557,0.00021917,2]
[329619902,1718513464366,-762.09,0.00021917,2]
[329619903,1718513464393,-4243.96,0.00021917,2]
[329619904,1718513464412,-500.0,0.00021917,2]
[329619905,1718513464433,-500.0,0.00021917,2]
[329619906,1718513464447,-726.96,0.00021917,2]
[329619907,1718513464472,-500.0,0.00021917,2]
[329619908,1718513464501,-500.0,0.00021917,2]
[329619909,1718513464515,-500.0,0.00021917,2]
[329619910,1718513464556,-500.0,0.00021917,2]
[329619911,1718513464597,-500.0,0.00021917,2]
[329619912,1718513464609,-500.0,0.00021917,2]
[329619913,1718513464624,-500.1,0.00021917,2]
[329619914,1718513464643,-505.64979668,0.00021917,2]
[329619915,1718513464684,-275.8240398,0.00021917,2]
[329619916,1718513464705,-500.0,0.00021917,2]
[329619917,1718513464733,-500.0,0.00021917,2]
[329619918,1718513464767,-506.61177133,0.00021917,2]
[329619919,1718513464780,-500.0,0.00021917,2]
[329619920,1718513464797,-3390.8,0.00021917,2]
[329619921,1718513464810,-500.0,0.00021917,2]
[329619922,1718513464821,-500.0,0.00021917,2]
[329619923,1718513464832,-2624.54,0.00021917,2]
[329619924,1718513464845,-500.0,0.00021917,2]
[329619925,1718513464887,-509.6121996,0.00021917,2]
[329619926,1718513464910,-500.0,0.00021917,7]
[329619927,1718513464924,-2792.33,0.00021917,2]
[329619928,1718513464935,-500.0,0.00021917,2]
[329619929,1718513464950,-500.0,0.00021917,2]
[329619930,1718513464982,-507.15025264,0.00021917,2]
[329619931,1718513464999,-1223.27,0.00021917,2]
[329619932,1718513465011,-500.0,0.00021917,2]
[329619933,1718513465043,-500.0,0.00021917,2]
[329619934,1718513465056,-993.28,0.00021917,2]
[329619935,1718513465084,-500.0,0.00021917,2]
[329619936,1718513465100,-500.0,0.00021917,2]
[329619937,1718513465123,-500.0,0.00021917,2]
[329619938,1718513465162,-500.0,0.00021917,2]
[329619939,1718513465236,-803.91,0.00021917,2]
[329619940,1718513465285,-500.0,0.00021917,2]
[329619941,1718513465299,-509.63948291,0.00021917,2]
[329619942,1718513465313,-500.0,0.00021917,2]
[329619943,1718513465332,-500.0,0.00021917,2]
[329619944,1718513465343,-500.0,0.00021917,2]
[329619945,1718513465360,-500.0,0.00021917,2]
[329619946,1718513465370,-500.0,0.00021917,2]
[329619947,1718513465396,-500.0,0.00021917,2]
[329619948,1718513465411,-500.0,0.00021917,2]
[329619949,1718513465460,-500.0,0.00021917,2]
[329619950,1718513465475,-500.0,0.00021917,2]
[329619951,1718513465486,-992.2,0.00021917,2]
[329619952,1718513465496,-500.0,0.00021917,2]
[329619953,1718513465512,-500.0,0.00021917,2]
[329619954,1718513465523,-500.0,0.00021917,2]
[329619955,1718513465544,-500.0,0.00021917,2]
[329619956,1718513465565,-500.0,0.00021917,2]
[329619957,1718513465585,-500.0,0.00021917,2]
[329619958,1718513465613,-1054.9,0.00021917,2]
[329619959,1718513465627,-1212.72,0.00021917,2]
[329619960,1718513465639,-510.1452981,0.00021917,2]
[329619961,1718513465702,-500.0,0.00021917,2]
[329619962,1718513465717,-500.0,0.00021917,2]
[329619963,1718513465728,-1713.28,0.00021917,2]
[329619964,1718513465746,-537.48,0.00021917,2]
[329619965,1718513465776,-500.0,0.00021917,2]
[329619966,1718513465787,-1033.59,0.00021917,2]
[329619967,1718513465798,-500.0,0.00021917,2]
[329619968,1718513465809,-500.0,0.00021917,2]
[329619969,1718513465853,-500.0,0.00021917,2]
[329619970,1718513465863,-749.49,0.00021917,2]
[329619971,1718513465874,-533.81,0.00021917,2]
[329619972,1718513465886,-500.0,0.00021917,2]
[329619973,1718513465920,-911.55,0.00021917,2]
[329619974,1718513465979,-500.0,0.00021917,2]
[329619975,1718513466005,-499.99959143,0.00021917,2]
[329619976,1718513466020,-500.0,0.00021917,2]
[329619977,1718513466076,-500.0,0.00021917,2]
[329619978,1718513466105,-500.0,0.00021917,2]
[329619979,1718513466115,-1285.19,0.00021917,2]
[329619980,1718513466132,-500.0,0.00021917,2]
[329619981,1718513466144,-500.0,0.00021917,2]
[329619982,1718513466163,-3097.1,0.00021917,2]
[329619983,1718513466188,-500.0,0.00021917,2]
[329619984,1718513466199,-500.0,0.00021917,2]
[329619985,1718513466253,-500.0,0.00021917,2]
[329619986,1718513466312,-500.0,0.00021917,2]
[329619987,1718513466324,-694.01,0.00021917,2]
[329619988,1718513466335,-500.0,0.00021917,2]
[329619989,1718513466347,-2310.75,0.00021917,2]
[329619990,1718513466361,-914.13,0.00021917,2]
[329619991,1718513466374,-1799.2,0.00021917,2]
[329619992,1718513466396,-500.0,0.00021917,2]
[329619993,1718513466410,-500.0,0.00021917,2]
[329619994,1718513466425,-500.0,0.00021917,2]
[329619995,1718513466446,-1029.84,0.00021917,2]
[329619996,1718513466460,-500.0,0.00021917,2]
[329619997,1718513466486,-500.0,0.00021917,2]
[329619998,1718513466497,-1018.62,0.00021917,2]
[329619999,1718513466511,-500.0,0.00021917,2]
[329620000,1718513466536,-1962.45,0.00021917,2]
[329620001,1718513466555,-1092.89,0.00021917,2]
[329620002,1718513466589,-500.0,0.00021917,2]
[329620003,1718513466618,-3167.94,0.00021917,2]
[329620004,1718513466641,-2183.71,0.00021917,2]
[329620005,1718513466654,-500.0,0.00021917,2]
[329620006,1718513466672,-500.0,0.00021917,2]
[329620007,1718513466708,-500.0,0.00021917,2]
[329620008,1718513466724,-1623.1,0.00021917,2]
[329620009,1718513466744,-500.0,0.00021917,2]
[329620010,1718513466755,-500.0,0.00021917,2]
[329620011,1718513466766,-1000.0,0.00021917,2]
[329620012,1718513466778,-564.45,0.00021917,2]
[329620013,1718513466807,-500.0,0.00021917,2]
[329620014,1718513466851,-500.0,0.00021917,2]
[329620015,1718513466872,-623.38,0.00021917,2]
[329620016,1718513466890,-769.11,0.00021917,2]
[329620017,1718513466910,-500.0,0.00021917,2]
[329620018,1718513466922,-500.0,0.00021917,2]
[329620019,1718513466948,-500.0,0.00021917,2]
[329620020,1718513466961,-500.0,0.00021917,2]
[329620021,1718513466978,-976.47,0.00021917,2]
[329620022,1718513466997,-1497.56,0.00021917,2]
[329620023,1718513467025,-598.4,0.00021917,2]
[329620024,1718513467037,-202.22004765,0.00021917,2]
[329620025,1718513467061,-500.0,0.00021917,2]
[329620026,1718513467079,-1844.67,0.00021917,2]
[329620027,1718513467097,-500.0,0.00021917,2]
[329620028,1718513467108,-500.0,0.00021917,2]
[329620029,1718513467119,-500.0,0.00021917,2]
[329620030,1718513467131,-500.0,0.00021917,2]
[329620031,1718513467142,-814.71,0.00021917,2]
[329620032,1718513467156,-500.0,0.00021917,2]
[329620033,1718513467168,-500.0,0.00021917,2]
[329620034,1718513467181,-723.71,0.00021917,2]
[329620035,1718513467192,-500.0,0.00021917,2]
[329620036,1718513467203,-500.0,0.00021917,2]
[329620037,1718513467222,-500.0,0.00021917,2]
[329620038,1718513467236,-500.0,0.00021917,2]
[329620039,1718513467250,-500.0,0.00021917,2]
[329620040,1718513467269,-500.0,0.00021917,2]
[329620041,1718513467324,-500.0,0.00021917,2]
[329620042,1718513467360,-500.0,0.00021917,2]
[329620043,1718513467378,-1238.86,0.00021917,2]
[329620044,1718513467389,-1728.45,0.00021917,2]
[329620045,1718513467431,-500.0,0.00021917,2]
[329620046,1718513467442,-500.0,0.00021917,2]
[329620047,1718513467452,-606.29,0.00021917,2]
[329620048,1718513467477,-500.0,0.00021917,2]
[329620049,1718513467504,-500.0,0.00021917,2]
[329620050,1718513467516,-4160.38,0.00021917,2]
[329620051,1718513467529,-720.62,0.00021917,2]
[329620052,1718513467541,-500.0,0.00021917,2]
[329620053,1718513467554,-3545.29,0.00021917,2]
[329620054,1718513467570,-500.0,0.00021917,2]
[329620055,1718513467582,-2551.27,0.00021917,2]
[329620056,1718513467617,-500.0,0.00021917,2]
[329620057,1718513467640,-500.0,0.00021917,2]
[329620058,1718513467656,-500.0,0.00021917,2]
[329620059,1718513467681,-628.02957672,0.00021917,2]
[329620060,1718513467692,-500.0,0.00021917,2]
[329620061,1718513467704,-1301.94,0.00021917,2]
[329620062,1718513467723,-620.08457805,0.00021917,2]
[329620063,1718513467736,-500.0,0.00021917,2]
[329620064,1718513467748,-500.0,0.00021917,2]
[329620065,1718513467760,-500.0,0.00021917,2]
[329620066,1718513467781,-500.0,0.00021917,2]
[329620067,1718513467792,-500.0,0.00021917,2]
[329620068,1718513467822,-500.0,0.00021917,2]
[329620069,1718513467841,-1323.23,0.00021917,2]
[329620070,1718513467856,-1384.0,0.00021917,2]
[329620071,1718513467881,-1725.75,0.00021917,2]
[329620072,1718513467897,-500.0,0.00021917,2]
[329620073,1718513467917,-500.0,0.00021917,2]
[329620074,1718513467933,-500.0,0.00021917,2]
[329620075,1718513467950,-500.0,0.00021917,2]
[329620076,1718513467968,-500.0,0.00021917,2]
[329620077,1718513467984,-500.0,0.00021917,2]
[329620078,1718513467994,-510.45499191,0.00021917,2]
[329620079,1718513468005,-500.0,0.00021917,2]
[329620080,1718513468016,-500.0,0.00021917,2]
[329620081,1718513468028,-500.0,0.00021917,2]
[329620082,1718513468044,-500.0,0.00021917,2]
[329620083,1718513468055,-798.02,0.00021917,2]
[329620084,1718513468067,-1836.89,0.00021917,2]
[329620085,1718513468077,-623.62171097,0.00021917,2]
[329620086,1718513468094,-520.51294073,0.00021917,2]
[329620087,1718513468105,-643.24,0.00021917,2]
[329620088,1718513468128,-525.89285878,0.00021917,2]
[329620089,1718513468148,-500.0,0.00021917,2]
[329620090,1718513468272,-500.0,0.00021917,2]
[329620091,1718513468306,-1801.07,0.00021917,2]
[329620092,1718513468326,-500.0,0.00021917,2]
[329620093,1718513468345,-230.09844143,0.00021917,2]
[329620094,1718513468361,-667.37,0.00021917,2]
[329620095,1718513468384,-500.0,0.00021917,2]
[329620096,1718513468397,-500.0,0.00021917,2]
[329620097,1718513468416,-500.0,0.00021917,2]
[329620098,1718513468430,-753.31,0.00021917,2]
[329620099,1718513468447,-500.0,0.00021917,2]
[329620100,1718513468501,-500.0,0.00021917,2]
[329620101,1718513468524,-595.99,0.00021917,2]
[329620102,1718513468538,-500.0,0.00021917,2]
[329620103,1718513468558,-500.0,0.00021917,2]
[329620104,1718513468571,-500.0,0.00021917,2]
[329620105,1718513468585,-1230.03,0.00021917,2]
[329620106,1718513468605,-1343.94,0.00021917,2]
[329620107,1718513468616,-500.0,0.00021917,2]
[329620108,1718513468628,-500.0,0.00021917,2]
[329620109,1718513468639,-500.0,0.00021917,2]
[329620110,1718513468650,-1695.48,0.00021917,2]
[329620111,1718513468664,-500.0,0.00021917,2]
[329620112,1718513468687,-1513.39,0.00021917,2]
[329620113,1718513468714,-500.0,0.00021917,2]
[329620114,1718513468729,-500.0,0.00021917,2]
[329620115,1718513468758,-500.0,0.00021917,2]
[329620116,1718513468786,-546.02866044,0.00021917,2]
[329620117,1718513468797,-2815.53,0.00021917,2]
[329620118,1718513468808,-1060.05,0.00021917,2]
[329620119,1718513468826,-1236.82,0.00021917,2]
[329620120,1718513468839,-882.11,0.00021917,2]
[329620121,1718513468852,-500.0,0.00021917,2]
[329620122,1718513468865,-500.0,0.00021917,2]
[329620123,1718513468903,-500.0,0.00021917,2]
[329620124,1718513468918,-872.1,0.00021917,2]
[329620125,1718513468942,-500.0,0.00021917,2]
[329620126,1718513468955,-500.0,0.00021917,2]
[329620127,1718513468969,-500.0,0.00021917,2]
[329620128,1718513468987,-500.0,0.00021917,2]
[329620129,1718513468999,-500.0,0.00021917,2]
[329620130,1718513469020,-1795.46,0.00021917,2]
[329620131,1718513469031,-1843.43,0.00021917,2]
[329620132,1718513469043,-500.0,0.00021917,2]
[329620133,1718513469054,-500.0,0.00021917,2]
[329620134,1718513469069,-500.0,0.00021917,2]
[329620135,1718513469080,-1496.85,0.00021917,2]
[329620136,1718513469095,-500.0,0.00021917,2]
[329620137,1718513469111,-500.0,0.00021917,2]
[329620138,1718513469124,-2254.83,0.00021917,2]
[329620139,1718513469143,-500.0,0.00021917,2]
[329620140,1718513469169,-506.39519251,0.00021917,2]
[329620141,1718513469185,-2300.91,0.00021917,2]
[329620142,1718513469213,-1584.62,0.00021917,2]
[329620143,1718513469233,-926.12,0.00021917,2]
[329620144,1718513469257,-500.0,0.00021917,2]
[329620145,1718513469269,-500.0,0.00021917,2]
[329620146,1718513469281,-507.97,0.00021917,2]
[329620147,1718513469293,-1562.17,0.00021917,2]
[329620148,1718513469305,-2094.76,0.00021917,2]
[329620149,1718513469320,-500.0,0.00021917,2]
[329620150,1718513469331,-500.0,0.00021917,2]
[329620151,1718513469342,-500.0,0.00021917,2]
[329620152,1718513469354,-507.64663114,0.00021917,2]
[329620153,1718513469366,-500.0,0.00021917,2]
[329620154,1718513469378,-504.58,0.00021917,2]
[329620155,1718513469389,-500.0,0.00021917,2]
[329620156,1718513469401,-505.33558978,0.00021917,2]
[329620157,1718513469424,-500.0,0.00021917,2]
[329620158,1718513469435,-500.0,0.00021917,2]
[329620159,1718513469451,-500.0,0.00021917,2]
[329620160,1718513469469,-500.0,0.00021917,2]
[329620161,1718513469486,-500.0,0.00021917,2]
[329620162,1718513469497,-500.0,0.00021917,2]
[329620163,1718513469526,-902.84,0.00021917,2]
[329620164,1718513469539,-500.0,0.00021917,2]
[329620165,1718513469550,-903.86,0.00021917,2]
[329620166,1718513469563,-1010.83,0.00021917,2]
[329620167,1718513469594,-500.0,0.00021917,2]
[329620168,1718513469609,-500.0,0.00021917,2]
[329620169,1718513469638,-795.76,0.00021917,2]
[329620170,1718513469653,-155.27181277,0.00021917,2]
[329620171,1718513469667,-500.0,0.00021917,2]
[329620172,1718513469685,-500.0,0.00021917,2]
[329620173,1718513469736,-1131.08,0.00021917,2]
[329620174,1718513469752,-500.0,0.00021917,2]
[329620175,1718513469764,-500.0,0.00021917,2]
[329620176,1718513469776,-500.0,0.00021917,2]
[329620177,1718513469807,-500.0,0.00021917,2]